fUSD/lending_fUSD_20260613
["ID","MTS","AMOUNT","RATE_DAILY","PERIOD"]
[424974299,1781364659000,-156.68954844,0.00027397,3]
[424974347,1781364659000,-1683.34,0.00027732,2]
[424974328,1781364659000,-1665.73,0.00027572,7]
[424974351,1781364659000,-152.0,0.0002775,3]
[424974326,1781364659000,-6907.24,0.0002755,30]
[424974303,1781364659000,-620.0,0.000275,2]
[424974325,1781364659000,-1665.73,0.0002755,30]
[424974304,1781364659000,-1000.0,0.000275,2]
[424974306,1781364659000,-276.28944246,0.00027532,2]
[424974305,1781364659000,-950.0,0.000275,2]
[424974308,1781364659000,-621.78829552,0.00027534,2]
[424974307,1781364659000,-151.0,0.00027534,2]
[424974310,1781364659000,-284.01862642,0.00027536,2]
[424974314,1781364659000,-250.0,0.0002755,2]
[424974318,1781364659000,-250.0,0.0002755,2]
[424974313,1781364659000,-250.0,0.0002755,2]
[424974311,1781364659000,-151.0,0.00027536,2]
[424974316,1781364659000,-250.0,0.0002755,2]
[424974327,1781364659000,-1683.34,0.00027572,7]
[424974312,1781364659000,-301.14337869,0.00027536,2]
[424974323,1781364659000,-472.96,0.0002755,2]
[424974322,1781364659000,-1683.34,0.0002755,30]
[424974321,1781364659000,-914.93,0.0002755,30]
[424974324,1781364659000,-913.83,0.0002755,30]
[424974317,1781364659000,-250.0,0.0002755,2]
[424974315,1781364659000,-250.0,0.0002755,2]
[424974319,1781364659000,-473.13,0.0002755,2]
[424974320,1781364659000,-6938.42,0.0002755,30]
[424974384,1781364660000,-473.13,0.00027885,30]
[424974380,1781364660000,-6938.42,0.00027872,2]
[424974379,1781364660000,-501.0,0.00027864,11]
[424974381,1781364660000,-914.93,0.00027872,2]
[424974382,1781364660000,-913.83,0.00027872,2]
[424974383,1781364660000,-6907.24,0.00027872,2]
[424974389,1781364660000,-267.852,0.00027916,18]
[424974385,1781364660000,-472.96,0.00027885,30]
[424974378,1781364660000,-472.96,0.00027855,7]
[424974390,1781364660000,-473.13,0.00027916,2]
[424974397,1781364660000,-472.96,0.00027977,30]
[424974391,1781364660000,-472.96,0.00027916,2]
[424974386,1781364660000,-1683.34,0.00027892,30]
[424974387,1781364660000,-1665.73,0.00027892,30]
[424974392,1781364660000,-206.79470615,0.00027918,2]
[424974393,1781364660000,-473.13,0.00027946,7]
[424974394,1781364660000,-472.96,0.00027946,7]
[424974395,1781364660000,-150.0,0.00027973,2]
[424974400,1781364660000,-216.029201,0.00028,10]
[424974399,1781364660000,-216.029201,0.00028,30]
[424974373,1781364660000,-250.0,0.0002784,2]
[424974388,1781364660000,-6086.077,0.00027916,18]
[424974374,1781364660000,-250.0,0.0002784,2]
[424974358,1781364660000,-152.0,0.0002775,3]
[424974377,1781364660000,-473.13,0.00027855,7]
[424974398,1781364660000,-511.10642857,0.00027984,2]
[424974355,1781364660000,-152.0,0.0002775,3]
[424974353,1781364660000,-152.0,0.0002775,3]
[424974352,1781364660000,-152.0,0.0002775,3]
[424974354,1781364660000,-152.0,0.0002775,3]
[424974359,1781364660000,-152.0,0.0002775,3]
[424974357,1781364660000,-152.0,0.0002775,3]
[424974356,1781364660000,-152.0,0.0002775,3]
[424974370,1781364660000,-472.96,0.00027824,2]
[424974361,1781364660000,-152.0,0.0002775,3]
[424974375,1781364660000,-250.0,0.0002784,2]
[424974360,1781364660000,-152.0,0.0002775,3]
[424974363,1781364660000,-473.13,0.00027763,7]
[424974362,1781364660000,-1257.82,0.00027752,7]
[424974366,1781364660000,-473.13,0.00027794,30]
[424974368,1781364660000,-908.7,0.000278,7]
[424974367,1781364660000,-472.96,0.00027794,30]
[424974365,1781364660000,-511.10642857,0.00027789,2]
[424974369,1781364660000,-473.13,0.00027824,2]
[424974371,1781364660000,-377.0,0.0002784,10]
[424974372,1781364660000,-250.0,0.0002784,2]
[424974376,1781364660000,-250.0,0.0002784,2]
[424974364,1781364660000,-472.96,0.00027763,7]
[424974401,1781364660000,-216.029201,0.00028,7]
[424974413,1781364660000,-1665.73,0.00028053,7]
[424974402,1781364660000,-908.7,0.00028,7]
[424974422,1781364660000,-250.0,0.0002813,2]
[424974425,1781364660000,-511.10642857,0.0002818,2]
[424974433,1781364660000,-1683.34,0.00028213,2]
[424974432,1781364660000,-908.7,0.000282,7]
[424974434,1781364660000,-1665.73,0.00028213,2]
[424974439,1781364660000,-6938.42,0.00028355,2]
[424974437,1781364660000,-639.26,0.000283,7]
[424974435,1781364660000,-603.76714756,0.0002822,2]
[424974440,1781364660000,-6907.24,0.00028355,2]
[424974441,1781364660000,-1688.64,0.00028373,30]
[424974426,1781364660000,-151.0,0.00028191,7]
[424974436,1781364660000,-1552.4,0.00028267,2]
[424974443,1781364660000,-1665.73,0.00028373,30]
[424974442,1781364660000,-1683.34,0.00028373,30]
[424974444,1781364660000,-511.10642857,0.00028376,2]
[424974446,1781364660000,-250.0,0.0002842,2]
[424974445,1781364660000,-908.7,0.000284,7]
[424974447,1781364660000,-250.0,0.0002842,2]
[424974448,1781364660000,-250.0,0.0002842,2]
[424974449,1781364660000,-1929.71978897,0.00028424,2]
[424974450,1781364660000,-1929.71978897,0.00028431,2]
[424974451,1781364660000,-168.5,0.00028493,2]
[424974396,1781364660000,-473.13,0.00027977,30]
[424974428,1781364660000,-914.93,0.00028194,7]
[424974438,1781364660000,-6206.9,0.00028328,7]
[424974427,1781364660000,-6938.42,0.00028194,7]
[424974431,1781364660000,-185.0158404,0.000282,120]
[424974405,1781364660000,-472.96,0.00028007,2]
[424974407,1781364660000,-914.93,0.00028033,30]
[424974406,1781364660000,-6938.42,0.00028033,30]
[424974409,1781364660000,-6907.24,0.00028033,30]
[424974404,1781364660000,-473.13,0.00028007,2]
[424974410,1781364660000,-473.13,0.00028038,7]
[424974403,1781364660000,-600.0,0.00028,2]
[424974411,1781364660000,-472.96,0.00028038,7]
[424974416,1781364660000,-284.01862642,0.00028084,2]
[424974420,1781364660000,-250.0,0.0002813,2]
[424974408,1781364660000,-913.83,0.00028033,30]
[424974414,1781364660000,-473.13,0.00028068,30]
[424974419,1781364660000,-250.0,0.0002813,2]
[424974417,1781364660000,-473.13,0.00028099,2]
[424974415,1781364660000,-472.96,0.00028068,30]
[424974418,1781364660000,-472.96,0.00028099,2]
[424974421,1781364660000,-250.0,0.0002813,2]
[424974424,1781364660000,-473.03,0.0002813,7]
[424974423,1781364660000,-473.29,0.0002813,7]
[424974429,1781364660000,-913.83,0.00028194,7]
[424974412,1781364660000,-1683.34,0.00028053,7]
[424974430,1781364660000,-6907.24,0.00028194,7]
[424974463,1781364661000,-421.2157734,0.0002858,7]
[424974467,1781364661000,-350.616694,0.00028588,7]
[424974468,1781364661000,-365.02497835,0.00028588,7]
[424974474,1781364661000,-306.2852094,0.00028589,7]
[424974473,1781364661000,-543.80296087,0.00028589,7]
[424974472,1781364661000,-399.61666828,0.00028589,7]
[424974478,1781364661000,-349.03668944,0.00028589,7]
[424974479,1781364661000,-414.09826151,0.00028589,7]
[424974476,1781364661000,-376.17169569,0.00028589,7]
[424974461,1781364661000,-1929.71978897,0.00028573,2]
[424974471,1781364661000,-492.29146223,0.00028589,7]
[424974466,1781364661000,-384.56914279,0.00028588,7]
[424974459,1781364661000,-501.0,0.00028568,11]
[424974469,1781364661000,-303.18729295,0.00028589,7]
[424974480,1781364661000,-306.74542712,0.00028589,7]
[424974470,1781364661000,-328.82098874,0.00028589,7]
[424974462,1781364661000,-326.54767509,0.0002858,7]
[424974456,1781364661000,-1929.71978897,0.0002853,2]
[424974455,1781364661000,-6907.24,0.00028516,30]
[424974453,1781364661000,-6810.48,0.00028516,30]
[424974454,1781364661000,-6938.42,0.00028516,30]
[424974458,1781364661000,-1929.71978897,0.00028549,2]
[424974460,1781364661000,-511.10642857,0.00028571,2]
[424974457,1781364661000,-1929.71978897,0.00028548,2]
[424974452,1781364661000,-1929.71978897,0.00028512,2]
[424974465,1781364661000,-375.46819097,0.00028588,7]
[424974475,1781364661000,-324.64865252,0.00028589,7]
[424974464,1781364661000,-412.86450554,0.00028588,7]
[424974482,1781364661000,-376.01790611,0.00028589,7]
[424974477,1781364661000,-366.97276466,0.00028589,7]
[424974507,1781364661000,-168.62001591,0.0002859,7]
[424974506,1781364661000,-417.42549201,0.0002859,7]
[424974503,1781364661000,-317.54022769,0.0002859,7]
[424974505,1781364661000,-348.46820544,0.0002859,7]
[424974502,1781364661000,-301.12593334,0.0002859,7]
[424974501,1781364661000,-310.59352665,0.0002859,7]
[424974498,1781364661000,-172.84039709,0.0002859,7]
[424974499,1781364661000,-303.50038031,0.0002859,2]
[424974495,1781364661000,-311.68582785,0.0002859,7]
[424974500,1781364661000,-173.73957344,0.0002859,7]
[424974493,1781364661000,-318.8631556,0.0002859,7]
[424974494,1781364661000,-390.49901648,0.0002859,7]
[424974504,1781364661000,-176.51803256,0.0002859,2]
[424974496,1781364661000,-179.29961787,0.0002859,2]
[424974497,1781364661000,-385.18405106,0.0002859,7]
[424974490,1781364661000,-352.76117678,0.00028589,7]
[424974481,1781364661000,-353.63391051,0.00028589,7]
[424974484,1781364661000,-348.35779852,0.00028589,7]
[424974487,1781364661000,-398.81466142,0.00028589,7]
[424974483,1781364661000,-322.07498912,0.00028589,7]
[424974486,1781364661000,-234.14911254,0.00028589,7]
[424974488,1781364661000,-395.55772108,0.00028589,7]
[424974489,1781364661000,-237.29417436,0.00028589,7]
[424974492,1781364661000,-333.3718177,0.00028589,7]
[424974491,1781364661000,-367.34224161,0.00028589,7]
[424974485,1781364661000,-375.11977718,0.00028589,7]
[424974528,1781364662000,-284.01862642,0.00028632,2]
[424974544,1781364662000,-4335.0,0.00028682,10]
[424974535,1781364662000,-367.71932815,0.00028664,7]
[424974534,1781364662000,-357.99047165,0.00028664,7]
[424974533,1781364662000,-379.02524615,0.00028664,7]
[424974537,1781364662000,-378.8822519,0.00028664,7]
[424974536,1781364662000,-329.32839724,0.00028664,7]
[424974538,1781364662000,-383.50489651,0.00028664,7]
[424974543,1781364662000,-370.35195989,0.00028664,7]
[424974540,1781364662000,-307.54580339,0.00028664,7]
[424974553,1781364662000,-1929.71978897,0.00028794,2]
[424974541,1781364662000,-303.6615009,0.00028664,7]
[424974542,1781364662000,-415.83708566,0.00028664,7]
[424974546,1781364662000,-250.0,0.0002871,2]
[424974549,1781364662000,-511.10642857,0.00028767,2]
[424974547,1781364662000,-1929.71978897,0.00028714,2]
[424974554,1781364662000,-200.0,0.00028849,2]
[424974551,1781364662000,-500.0,0.00028767,2]
[424974552,1781364662000,-1000.0,0.00028767,40]
[424974531,1781364662000,-1929.71978897,0.00028646,2]
[424974539,1781364662000,-308.52237718,0.00028664,7]
[424974530,1781364662000,-1929.71978897,0.00028645,2]
[424974515,1781364662000,-346.81151756,0.0002859,5]
[424974529,1781364662000,-374.47,0.00028639,3]
[424974508,1781364662000,-241.45217659,0.0002859,7]
[424974510,1781364662000,-301.08725553,0.0002859,7]
[424974514,1781364662000,-306.58749095,0.0002859,7]
[424974512,1781364662000,-248.28950335,0.0002859,7]
[424974511,1781364662000,-176.72664511,0.0002859,2]
[424974509,1781364662000,-369.42771245,0.0002859,7]
[424974516,1781364662000,-155.76910114,0.0002859,2]
[424974513,1781364662000,-155.15033319,0.0002859,7]
[424974550,1781364662000,-218.0466575,0.00028767,2]
[424974532,1781364662000,-210.29100766,0.00028664,7]
[424974518,1781364662000,-175.98527621,0.0002859,2]
[424974517,1781364662000,-247.02892797,0.0002859,5]
[424974524,1781364662000,-14301.98630876,0.000286,2]
[424974521,1781364662000,-205.46414914,0.0002859,7]
[424974522,1781364662000,-220.57456637,0.0002859,7]
[424974520,1781364662000,-226.40288704,0.0002859,7]
[424974519,1781364662000,-194.8392793,0.0002859,7]
[424974523,1781364662000,-14301.98630876,0.000286,2]
[424974525,1781364662000,-14301.98630876,0.000286,2]
[424974527,1781364662000,-177.0,0.00028625,3]
[424974526,1781364662000,-1929.71978897,0.00028621,2]
[424974548,1781364662000,-152.65923931,0.00028765,2]
[424974545,1781364662000,-250.0,0.0002871,2]
[424974562,1781364662000,-200.0,0.00028859,2]
[424974577,1781364662000,-855.3,0.00028964,4]
[424974582,1781364662000,-151.3701495,0.00028997,7]
[424974581,1781364662000,-151.0,0.00028997,7]
[424974585,1781364662000,-500.0,0.00029,2]
[424974586,1781364662000,-500.0,0.00029,2]
[424974590,1781364662000,-500.0,0.00029,2]
[424974591,1781364662000,-500.0,0.00029,2]
[424974589,1781364662000,-500.0,0.00029,2]
[424974587,1781364662000,-500.0,0.00029,2]
[424974593,1781364662000,-500.0,0.00029,2]
[424974592,1781364662000,-500.0,0.00029,2]
[424974595,1781364662000,-500.0,0.00029,2]
[424974598,1781364662000,-500.0,0.00029,2]
[424974596,1781364662000,-500.0,0.00029,2]
[424974597,1781364662000,-500.0,0.00029,2]
[424974594,1781364662000,-500.0,0.00029,2]
[424974600,1781364662000,-110377.64436986,0.00029,2]
[424974599,1781364662000,-508.0,0.00029,2]
[424974601,1781364662000,-1948798.16174125,0.00029,2]
[424974602,1781364662000,-5506.50943795,0.00029,120]
[424974555,1781364662000,-500.0,0.00028855,2]
[424974578,1781364662000,-32327.68271961,0.0002897,6]
[424974576,1781364662000,-511.10642857,0.00028963,2]
[424974588,1781364662000,-500.0,0.00029,2]
[424974579,1781364662000,-400.0,0.0002897,2]
[424974557,1781364662000,-150.0,0.00028855,2]
[424974583,1781364662000,-151.0,0.00028997,7]
[424974560,1781364662000,-200.0,0.00028859,2]
[424974563,1781364662000,-1929.71978897,0.0002886,2]
[424974556,1781364662000,-150.0,0.00028855,2]
[424974561,1781364662000,-200.0,0.00028859,2]
[424974558,1781364662000,-200.0,0.00028856,2]
[424974559,1781364662000,-200.0,0.00028859,2]
[424974565,1781364662000,-190545.49109543,0.000289,2]
[424974566,1781364662000,-563.0,0.000289,2]
[424974570,1781364662000,-152.0,0.0002895,3]
[424974564,1781364662000,-1929.71978897,0.00028898,2]
[424974584,1781364662000,-500.0,0.00029,2]
[424974569,1781364662000,-152.0,0.0002895,3]
[424974572,1781364662000,-152.0,0.0002895,3]
[424974574,1781364662000,-152.0,0.0002895,3]
[424974573,1781364662000,-152.0,0.0002895,3]
[424974567,1781364662000,-20878.07718858,0.00028913,2]
[424974568,1781364662000,-152.0,0.0002895,3]
[424974571,1781364662000,-152.0,0.0002895,3]
[424974575,1781364662000,-1929.71978897,0.00028955,2]
[424974580,1781364662000,-700.0,0.0002897,2]
[424974637,1781364663000,-151.0,0.00029,7]
[424974638,1781364663000,-168.56113,0.00029,7]
[424974634,1781364663000,-315.42,0.00029,30]
[424974635,1781364663000,-908.7,0.00029,7]
[424974631,1781364663000,-227.71842302,0.00029,2]
[424974641,1781364663000,-168.56113,0.00029,7]
[424974633,1781364663000,-216.029201,0.00029,30]
[424974632,1781364663000,-200.0,0.00029,2]
[424974642,1781364663000,-318.957658,0.00029,30]
[424974636,1781364663000,-4042.0,0.00029,7]
[424974643,1781364663000,-250.0,0.00029,2]
[424974651,1781364663000,-151.0,0.00029,7]
[424974639,1781364663000,-168.56113,0.00029,7]
[424974645,1781364663000,-170.212458,0.00029,7]
[424974655,1781364663000,-1229.414061,0.00029,7]
[424974644,1781364663000,-500.0,0.00029,2]
[424974646,1781364663000,-170.212458,0.00029,7]
[424974647,1781364663000,-170.212458,0.00029,7]
[424974648,1781364663000,-170.212458,0.00029,7]
[424974649,1781364663000,-500.0,0.00029,2]
[424974652,1781364663000,-151.0,0.00029,7]
[424974650,1781364663000,-151.0,0.00029,7]
[424974630,1781364663000,-178.80353506,0.00029,2]
[424974640,1781364663000,-168.56113,0.00029,7]
[424974629,1781364663000,-200.0,0.00029,2]
[424974613,1781364663000,-200.0,0.00029,2]
[424974627,1781364663000,-218.32,0.00029,2]
[424974653,1781364663000,-151.0,0.00029,7]
[424974603,1781364663000,-2572.24816183,0.00029,2]
[424974609,1781364663000,-361.26,0.00029,2]
[424974612,1781364663000,-200.0,0.00029,2]
[424974610,1781364663000,-492.0,0.00029,2]
[424974604,1781364663000,-1001.88759555,0.00029,2]
[424974611,1781364663000,-200.0,0.00029,2]
[424974605,1781364663000,-9630.69243111,0.00029,2]
[424974607,1781364663000,-10290.30071507,0.00029,2]
[424974606,1781364663000,-219.9686522,0.00029,2]
[424974608,1781364663000,-788.80349131,0.00029,2]
[424974628,1781364663000,-337.05,0.00029,2]
[424974614,1781364663000,-167.64625114,0.00029,2]
[424974620,1781364663000,-200.0,0.00029,2]
[424974623,1781364663000,-200.0,0.00029,2]
[424974617,1781364663000,-200.0,0.00029,2]
[424974619,1781364663000,-200.0,0.00029,2]
[424974618,1781364663000,-200.0,0.00029,2]
[424974616,1781364663000,-200.0,0.00029,2]
[424974621,1781364663000,-200.0,0.00029,2]
[424974622,1781364663000,-200.0,0.00029,2]
[424974625,1781364663000,-200.0,0.00029,2]
[424974624,1781364663000,-200.0,0.00029,2]
[424974626,1781364663000,-200.0,0.00029,2]
[424974615,1781364663000,-200.0,0.00029,2]
[424974654,1781364663000,-151.0,0.00029,7]
[424974691,1781364663000,-351.714565,0.00029,7]
[424974659,1781364663000,-500.0,0.00029,2]
[424974685,1781364663000,-162.032497,0.00029,7]
[424974680,1781364663000,-500.0,0.00029,2]
[424974687,1781364663000,-162.032497,0.00029,7]
[424974688,1781364663000,-351.714565,0.00029,7]
[424974690,1781364663000,-162.032497,0.00029,7]
[424974692,1781364663000,-1034.48974,0.00029,7]
[424974694,1781364663000,-351.714565,0.00029,7]
[424974693,1781364663000,-162.032497,0.00029,7]
[424974697,1781364663000,-350.0,0.00029,30]
[424974695,1781364663000,-1034.48974,0.00029,7]
[424974696,1781364663000,-1034.48974,0.00029,7]
[424974699,1781364663000,-417.224131,0.00029,7]
[424974698,1781364663000,-500.0,0.00029,2]
[424974701,1781364663000,-417.224131,0.00029,7]
[424974706,1781364663000,-866.624057,0.00029,7]
[424974702,1781364663000,-417.224131,0.00029,7]
[424974709,1781364663000,-866.624057,0.00029,7]
[424974704,1781364663000,-500.0,0.00029,2]
[424974705,1781364663000,-866.624057,0.00029,7]
[424974708,1781364663000,-352.115069,0.00029,7]
[424974703,1781364663000,-518.11125959,0.00029,2]
[424974656,1781364663000,-1229.414061,0.00029,7]
[424974707,1781364663000,-866.624057,0.00029,7]
[424974681,1781364663000,-1598.331557,0.00029,7]
[424974686,1781364663000,-351.714565,0.00029,7]
[424974700,1781364663000,-417.224131,0.00029,7]
[424974683,1781364663000,-1598.331557,0.00029,7]
[424974660,1781364663000,-151.0,0.00029,7]
[424974689,1781364663000,-1034.48974,0.00029,7]
[424974657,1781364663000,-1229.414061,0.00029,7]
[424974665,1781364663000,-493.169011,0.00029,7]
[424974661,1781364663000,-151.0,0.00029,7]
[424974666,1781364663000,-493.169011,0.00029,7]
[424974658,1781364663000,-1229.414061,0.00029,7]
[424974664,1781364663000,-500.0,0.00029,2]
[424974662,1781364663000,-154.309099,0.00029,7]
[424974678,1781364663000,-151.0,0.00029,7]
[424974668,1781364663000,-150.0,0.00029,2]
[424974670,1781364663000,-500.0,0.00029,2]
[424974667,1781364663000,-493.169011,0.00029,7]
[424974663,1781364663000,-493.169011,0.00029,7]
[424974671,1781364663000,-1157.771403,0.00029,7]
[424974669,1781364663000,-151.0,0.00029,7]
[424974682,1781364663000,-1598.331557,0.00029,7]
[424974676,1781364663000,-1243.076552,0.00029,7]
[424974674,1781364663000,-1243.076552,0.00029,7]
[424974684,1781364663000,-1598.331557,0.00029,7]
[424974673,1781364663000,-1157.771403,0.00029,7]
[424974672,1781364663000,-1243.076552,0.00029,7]
[424974675,1781364663000,-1157.771403,0.00029,7]
[424974677,1781364663000,-1157.771403,0.00029,7]
[424974679,1781364663000,-1243.076552,0.00029,7]
[424974740,1781364664000,-396.17,0.00029192,2]
[424974746,1781364664000,-1123.43,0.00029287,7]
[424974739,1781364664000,-185.12,0.00029192,2]
[424974735,1781364664000,-362.0,0.0002916,30]
[424974737,1781364664000,-502.0,0.00029179,10]
[424974736,1781364664000,-277.0,0.0002916,30]
[424974741,1781364664000,-151.0,0.00029194,2]
[424974751,1781364664000,-2000.0,0.0002929,2]
[424974738,1781364664000,-284.01862642,0.0002918,2]
[424974747,1781364664000,-3000.0,0.0002929,2]
[424974750,1781364664000,-2000.0,0.0002929,2]
[424974752,1781364664000,-2000.0,0.0002929,2]
[424974753,1781364664000,-2000.0,0.0002929,2]
[424974745,1781364664000,-152.0,0.00029273,7]
[424974748,1781364664000,-3000.0,0.0002929,2]
[424974757,1781364664000,-267.38,0.00029299,6]
[424974758,1781364664000,-1929.71978897,0.00029309,2]
[424974759,1781364664000,-1929.71978897,0.00029314,2]
[424974764,1781364664000,-1275.0,0.0002939,2]
[424974765,1781364664000,-383.0,0.0002939,2]
[424974755,1781364664000,-440.74,0.00029297,6]
[424974756,1781364664000,-1929.71978897,0.00029298,2]
[424974743,1781364664000,-402.5114317,0.0002922,7]
[424974754,1781364664000,-664.85,0.0002929,2]
[424974733,1781364664000,-386.0,0.0002916,30]
[424974711,1781364664000,-352.115069,0.00029,7]
[424974742,1781364664000,-482.24,0.00029195,2]
[424974761,1781364664000,-374.47,0.00029331,11]
[424974710,1781364664000,-422.046273,0.00029,7]
[424974713,1781364664000,-1000.0,0.00029,2]
[424974714,1781364664000,-1019.6819,0.00029,2]
[424974715,1781364664000,-1000.0,0.00029,2]
[424974712,1781364664000,-1000.0,0.00029,2]
[424974716,1781364664000,-150.0,0.00029,2]
[424974722,1781364664000,-170.18,0.000291,4]
[424974721,1781364664000,-601.3,0.000291,2]
[424974718,1781364664000,-1929.71978897,0.00029022,2]
[424974717,1781364664000,-500.0,0.00029014,2]
[424974744,1781364664000,-501.0,0.00029273,12]
[424974719,1781364664000,-601.29,0.000291,2]
[424974731,1781364664000,-284.0,0.0002916,30]
[424974724,1781364664000,-755.0,0.0002916,30]
[424974730,1781364664000,-459.0,0.0002916,30]
[424974727,1781364664000,-344.0,0.0002916,30]
[424974723,1781364664000,-511.1,0.00029159,2]
[424974726,1781364664000,-437.0,0.0002916,30]
[424974725,1781364664000,-218.0,0.0002916,30]
[424974732,1781364664000,-1047.0,0.0002916,30]
[424974729,1781364664000,-2680.0,0.0002916,30]
[424974728,1781364664000,-1257.0,0.0002916,30]
[424974734,1781364664000,-1842.0,0.0002916,30]
[424974720,1781364664000,-403.83,0.000291,2]
[424974760,1781364664000,-601.0,0.00029315,2]
[424974749,1781364664000,-1004.99,0.0002929,2]
[424974763,1781364664000,-150.0,0.00029372,2]
[424974792,1781364664000,-738.43719334,0.00029449,7]
[424974793,1781364664000,-209.79413505,0.00029449,7]
[424974796,1781364664000,-459.4278141,0.00029449,7]
[424974797,1781364664000,-486.97297879,0.00029449,7]
[424974798,1781364664000,-550.45914699,0.00029449,7]
[424974802,1781364664000,-530.45086576,0.0002945,7]
[424974804,1781364664000,-311.53820229,0.0002945,2]
[424974803,1781364664000,-564.02685916,0.0002945,7]
[424974799,1781364664000,-523.55503416,0.00029449,7]
[424974801,1781364664000,-460.11814068,0.0002945,7]
[424974806,1781364664000,-522.53669778,0.0002945,7]
[424974794,1781364664000,-599.42500242,0.00029449,7]
[424974805,1781364664000,-483.11248368,0.0002945,7]
[424974807,1781364664000,-248.85366096,0.0002945,7]
[424974809,1781364664000,-562.67966576,0.0002945,7]
[424974810,1781364664000,-468.29822507,0.0002945,7]
[424974811,1781364664000,-598.22199213,0.0002945,7]
[424974812,1781364664000,-593.33658162,0.0002945,7]
[424974808,1781364664000,-295.5913258,0.0002945,7]
[424974816,1781364664000,-551.01336242,0.0002945,7]
[424974815,1781364664000,-239.02069321,0.0002945,7]
[424974817,1781364664000,-500.05772655,0.0002945,7]
[424974814,1781364664000,-529.14176516,0.0002945,7]
[424974762,1781364664000,-511.1,0.00029354,2]
[424974800,1781364664000,-621.14739226,0.00029449,7]
[424974791,1781364664000,-493.23148311,0.00029449,7]
[424974813,1781364664000,-474.58834871,0.0002945,7]
[424974790,1781364664000,-201.43813504,0.00029449,7]
[424974795,1781364664000,-815.7044413,0.00029449,7]
[424974767,1781364664000,-1359.0,0.0002939,2]
[424974770,1781364664000,-1929.71978897,0.00029434,2]
[424974768,1781364664000,-3644.0,0.0002939,2]
[424974776,1781364664000,-219.60036414,0.00029449,7]
[424974773,1781364664000,-631.8236601,0.0002944,7]
[424974775,1781364664000,-350.0,0.00029444,6]
[424974774,1781364664000,-454.78093942,0.0002944,7]
[424974769,1781364664000,-1283.85,0.00029399,4]
[424974766,1781364664000,-1228.0,0.0002939,2]
[424974772,1781364664000,-489.82151264,0.0002944,7]
[424974777,1781364664000,-619.29675831,0.00029449,7]
[424974771,1781364664000,-837.42778761,0.00029435,3]
[424974785,1781364664000,-221.84390347,0.00029449,7]
[424974782,1781364664000,-205.16945778,0.00029449,7]
[424974788,1781364664000,-165.31350154,0.00029449,7]
[424974780,1781364664000,-525.925041,0.00029449,7]
[424974783,1781364664000,-547.53746753,0.00029449,7]
[424974781,1781364664000,-564.25754353,0.00029449,7]
[424974779,1781364664000,-563.20228645,0.00029449,7]
[424974786,1781364664000,-225.80186222,0.00029449,7]
[424974778,1781364664000,-207.67825823,0.00029449,7]
[424974784,1781364664000,-197.54928533,0.00029449,7]
[424974787,1781364664000,-173.73494006,0.00029449,7]
[424974789,1781364664000,-200.00538934,0.00029449,7]
[424974843,1781364665000,-243.43045025,0.0002945,7]
[424974841,1781364665000,-353.03606512,0.0002945,2]
[424974847,1781364665000,-482.90435318,0.0002945,7]
[424974845,1781364665000,-626.13823801,0.0002945,7]
[424974850,1781364665000,-353.45329022,0.0002945,2]
[424974856,1781364665000,-351.97055243,0.0002945,2]